fUSD/lending_fUSD_20250428
["ID","MTS","AMOUNT","RATE_DAILY","PERIOD"]
[359265171,1745878246211,-150.0,0.00037146,2]
[359265173,1745878246220,-1689.85174997,0.0003721,13]
[359265175,1745878246229,-304.72,0.0003728,2]
[359265177,1745878246238,-239.84119403,0.0003729,2]
[359265179,1745878246247,-157.31,0.00037387,2]
[359265181,1745878246257,-800.38,0.00037397,2]
[359265183,1745878246267,-455.44,0.00037397,2]
[359265185,1745878246276,-800.38,0.00037397,2]
[359265187,1745878246285,-423.79,0.00037397,2]
[359265189,1745878246294,-455.44,0.00037397,2]
[359265191,1745878246304,-2220.23,0.000374,2]
[359265193,1745878246313,-4454.7499222,0.00037405,2]
[359265195,1745878246323,-152.0,0.00037469,8]
[359265197,1745878246332,-159.0,0.000375,5]
[359265199,1745878246341,-1000.0,0.000375,2]
[359265201,1745878246352,-200.0,0.00037566,2]
[359265203,1745878246362,-455.44,0.00037671,2]
[359265205,1745878246371,-1000.0,0.00037679,2]
[359265207,1745878246380,-1689.85174997,0.00037693,14]
[359265209,1745878246389,-1248.63,0.00037706,5]
[359265211,1745878246399,-312.96,0.00037707,5]
[359265213,1745878246408,-36861.2595402,0.00037767,3]
[359265215,1745878246417,-150.0,0.00037777,2]
[359265217,1745878246427,-4454.7499222,0.00037794,2]
[359265219,1745878246436,-341.032267,0.00037896,7]
[359265221,1745878246446,-151.0,0.00037896,7]
[359265223,1745878246455,-151.0,0.00037896,7]
[359265225,1745878246464,-151.0,0.00037896,7]
[359265227,1745878246473,-151.0,0.00037896,7]
[359265229,1745878246483,-158.495111,0.00037896,7]
[359265231,1745878246492,-151.0,0.00037896,7]
[359265233,1745878246501,-1265.81,0.00037985,5]
[359265235,1745878246510,-1227.45,0.00037986,5]
[359265237,1745878246520,-1237.26,0.00037986,5]
[359265239,1745878246530,-1225.87,0.00037999,5]
[359265241,1745878246539,-3545.999999,0.00038,3]
[359265243,1745878246548,-691.72,0.00038,2]
[359265245,1745878246558,-1268.82,0.00038005,5]
[359265247,1745878246567,-1240.83,0.00038008,5]
[359265249,1745878246576,-2000.0,0.00038029,15]
[359265251,1745878246585,-150.0,0.00038072,2]
[359265253,1745878246598,-150.0,0.00038074,2]
[359265255,1745878246607,-150.0,0.00038079,2]
[359265257,1745878246616,-150.0,0.00038079,2]
[359265259,1745878246627,-150.0,0.00038082,2]
[359265261,1745878246640,-150.0,0.0003809,2]
[359265263,1745878246649,-150.0,0.00038097,2]
[359265265,1745878246658,-150.0,0.000381,2]
[359265267,1745878246668,-27173.8265109,0.00038106,3]
[359265269,1745878246677,-150.0,0.00038111,2]
[359265271,1745878246687,-150.0,0.00038112,2]
[359265274,1745878246696,-151.0,0.00038116,7]
[359265275,1745878246706,-151.0,0.00038116,7]
[359265277,1745878246715,-150.0,0.00038122,2]
[359265279,1745878246724,-150.0,0.00038122,2]
[359265281,1745878246733,-150.0,0.00038123,2]
[359265284,1745878246742,-150.0,0.00038128,2]
[359265285,1745878246752,-150.0,0.00038138,2]
[359265287,1745878246761,-150.0,0.00038138,2]
[359265290,1745878246771,-150.0,0.00038139,2]
[359265291,1745878246780,-150.0,0.0003815,2]
[359265293,1745878246789,-150.0,0.00038151,2]
[359265295,1745878246799,-150.0,0.0003816,2]
[359265297,1745878246808,-150.0,0.00038162,2]
[359265299,1745878246817,-150.0,0.00038165,2]
[359265301,1745878246828,-150.0,0.00038168,2]
[359265303,1745878246837,-150.0,0.0003817,2]
[359265305,1745878246846,-150.0,0.00038172,2]
[359265307,1745878246855,-1689.85174997,0.00038176,14]
[359265309,1745878246865,-150.0,0.00038178,2]
[359265311,1745878246874,-150.0,0.0003818,2]
[359265313,1745878246883,-4454.7499222,0.00038184,2]
[359265315,1745878246893,-10540.86629963,0.00038187,3]
[359265319,1745878246916,-2060.4,0.00038187,3]
[359265322,1745878246942,-24259.99324057,0.00038187,3]
[359265324,1745878246952,-150.0,0.00038188,2]
[359265326,1745878246961,-150.0,0.0003819,2]
[359265328,1745878246971,-156.64094308,0.00038193,2]
[359265330,1745878246980,-150.0,0.00038197,2]
[359265332,1745878246990,-150.0,0.00038197,2]
[359265335,1745878246999,-150.0,0.000382,2]
[359265337,1745878247008,-150.0,0.00038201,2]
[359265339,1745878247018,-380.59695188,0.00038205,13]
[359265340,1745878247027,-380.59695188,0.00038211,13]
[359265343,1745878247036,-150.0,0.00038211,2]
[359265345,1745878247046,-150.0,0.00038213,2]
[359265346,1745878247056,-158.90007297,0.00038215,11]
[359265348,1745878247065,-380.59695188,0.00038216,13]
[359265350,1745878247075,-150.0,0.00038219,2]
[359265352,1745878247084,-150.0,0.0003822,2]
[359265355,1745878247094,-150.0,0.00038222,2]
[359265357,1745878247104,-150.0,0.00038224,2]
[359265359,1745878247113,-150.0,0.00038231,2]
[359265361,1745878247122,-150.0,0.00038231,2]
[359265363,1745878247131,-150.0,0.00038231,2]
[359265365,1745878247141,-150.0,0.00038236,2]
[359265367,1745878247151,-150.0,0.00038239,2]
[359265368,1745878247161,-150.0,0.00038241,2]
[359265371,1745878247170,-151.0,0.00038242,7]
[359265372,1745878247181,-150.0,0.00038242,2]
[359265374,1745878247192,-150.0,0.00038246,2]
[359265376,1745878247201,-150.0,0.00038246,2]
[359265378,1745878247211,-150.0,0.00038248,2]
[359265380,1745878247221,-150.0,0.00038252,2]
[359265382,1745878247231,-150.0,0.00038253,2]
[359265384,1745878247242,-150.0,0.00038269,2]
[359265386,1745878247251,-150.0,0.00038269,2]
[359265389,1745878247261,-150.0,0.00038269,2]
[359265391,1745878247271,-150.0,0.00038272,2]
[359265393,1745878247280,-150.0,0.00038283,2]
[359265395,1745878247290,-150.0,0.00038289,2]
[359265397,1745878247299,-150.0,0.0003829,2]
[359265399,1745878247308,-150.0,0.00038293,2]
[359265401,1745878247318,-150.0,0.00038294,2]
[359265403,1745878247327,-157.31,0.00038295,2]
[359265404,1745878247336,-150.0,0.00038296,2]
[359265407,1745878247345,-150.0,0.00038297,2]
[359265408,1745878247355,-150.0,0.000383,2]
[359265411,1745878247364,-150.0,0.00038301,2]
[359265413,1745878247373,-150.0,0.00038304,2]
[359265414,1745878247383,-151.0,0.00038305,7]
[359265416,1745878247392,-253.432125,0.00038305,7]
[359265418,1745878247402,-151.0,0.00038305,7]
[359265419,1745878247411,-151.0,0.00038305,7]
[359265420,1745878247421,-151.0,0.00038305,7]
[359265421,1745878247431,-151.0,0.00038305,7]
[359265423,1745878247441,-151.0,0.00038305,7]
[359265424,1745878247451,-301.315144,0.00038305,7]
[359265426,1745878247461,-151.0,0.00038305,7]
[359265428,1745878247470,-151.0,0.00038305,7]
[359265430,1745878247480,-252.070893,0.00038305,7]
[359265432,1745878247489,-252.070893,0.00038305,7]
[359265434,1745878247499,-81027.41183274,0.00038305,3]
[359265437,1745878247515,-718.07009838,0.00038305,3]
[359265439,1745878247527,-784.9815,0.00038305,3]
[359265442,1745878247538,-1414.157248,0.00038305,3]
[359265443,1745878247550,-545.152395,0.00038305,3]
[359265444,1745878247562,-1144.67356,0.00038305,3]
[359265445,1745878247573,-472.95900005,0.00038305,3]
[359265446,1745878247586,-1126.6565,0.00038305,3]
[359265608,1745878321562,200.0,0.00034523,117]
[359265609,1745878321638,200.0,0.00032203,117]
[359265610,1745878321730,200.0,0.00033441,117]
[359265611,1745878441283,200.0,0.00034523,117]
[359265612,1745878497720,663.04,0.00038356,120]
[359265613,1745878590932,569.28822612,0.00038235,45]
[359265614,1745878644800,450.042707,0.000369,120]
[359265615,1745878709650,224.324,0.00037616,49]
[359265619,1745878987927,1427.5,0.00038356,30]
[359265620,1745878995848,494.09,0.00038356,30]
[359265621,1745878999621,470.0,0.00038356,30]
[359265622,1745879026486,1000.0,0.00038356,30]
[359265623,1745879053067,6864.0,0.00038356,30]
[359265624,1745879059771,300.0,0.00038356,30]
[359265625,1745879064255,470.0,0.00038356,30]
[359265626,1745879071793,300.0,0.00038356,30]
[359265627,1745879072031,500.0,0.00038356,30]
[359265628,1745879088198,470.0,0.00038356,30]
[359265629,1745879103763,470.0,0.00038356,30]
[359265630,1745879115246,470.0,0.00038356,30]
[359265631,1745879125659,470.0,0.00038356,30]
[359265632,1745879135078,470.0,0.00038356,30]
[359265633,1745879179185,250.0,0.00017,2]
[359265634,1745879180249,300.0,0.00019,2]
[359265635,1745879189919,1769.06634599,0.000383,30]
[359265636,1745879252085,-190.16713292,0.0002001,2]
[359265638,1745879350553,250.0,0.00038356,30]
[359265639,1745879395005,635.41,0.00038305,120]
[359265662,1745879432212,-1200.0,0.00019599,2]
[359265663,1745879432222,-785.0,0.00019599,2]
[359265664,1745879432232,-300.0,0.00019599,2]
[359265665,1745879432242,-16669.585932,0.000196,2]
[359265666,1745879432385,-103249.74718745,0.000196,2]
[359265667,1745879432397,-1390.75597068,0.000196,2]
[359265668,1745879432408,-187.11466006,0.0001991,2]
[359265669,1745879432418,-8801.56619596,0.0002001,2]
[359265670,1745879432428,-4957.49137322,0.0002001,2]
[359265671,1745879432438,-1673.18068747,0.0002015,2]
[359265672,1745879432448,-1423.21638815,0.0002018,2]
[359265673,1745879432458,-2498.59647502,0.000209,2]
[359265674,1745879432469,-2042.9814213,0.000209,3]
[359265675,1745879432479,-20000.0,0.00021,2]
[359265676,1745879432489,-350.0,0.00021,2]
[359265677,1745879432499,-250.0,0.00021,2]
[359265678,1745879432509,-302.0,0.0002135,2]
[359265679,1745879432518,-1680.0,0.00021453,2]
[359265680,1745879432528,-401.52304942,0.00021762,3]
[359265681,1745879432551,-1246.48100566,0.00021762,3]
[359265958,1745879438235,-230.49487607,0.00021761,2]
[359265959,1745879438244,-184.31342003,0.00021761,2]
[359265960,1745879438253,-196.70373538,0.00021761,2]
[359265961,1745879438263,-500.0,0.00021761,2]
[359265962,1745879438272,-179.14341039,0.00021761,2]
[359265963,1745879438281,-500.0,0.00021761,2]
[359265964,1745879438291,-500.0,0.00021761,2]
[359265965,1745879438301,-500.0,0.00021761,2]
[359265966,1745879438310,-218.69153418,0.00021761,2]
[359265967,1745879438319,-500.0,0.00021761,2]
[359265968,1745879438329,-394.97736615,0.00021762,3]
[359265969,1745879438338,-500.0,0.000218,2]
[359265970,1745879438347,-500.93538089,0.000218,2]
[359265971,1745879438356,-500.0,0.000218,2]
[359265972,1745879438365,-500.0,0.000218,2]
[359265973,1745879438374,-500.0,0.000218,2]
[359265974,1745879438383,-162.22541034,0.000218,2]
[359265975,1745879438392,-500.0,0.000218,2]
[359265976,1745879438401,-500.0,0.0002262,2]
[359265977,1745879438410,-500.0,0.0002262,2]
[359265978,1745879438420,-500.0,0.0002262,2]
[359265979,1745879438429,-2042.98142123,0.00022624,4]
[359265980,1745879438438,-2498.59647499,0.0002295,2]
[359265981,1745879438447,-400.0,0.00023,2]
[359265982,1745879438456,-557.15,0.00023069,2]
[359265983,1745879438465,-2351.0,0.00023482,2]
[359265984,1745879438474,-2042.98142123,0.00023486,4]
[359265985,1745879438483,-21536.61313011,0.00024,2]
[359265986,1745879438501,-1000.0,0.00024,2]
[359265987,1745879438512,-1437.59594108,0.00024,2]
[359265988,1745879438590,-701.66400667,0.00024,2]
[359266180,1745879440603,-34965.90152617,0.00024,2]
[359266184,1745879440618,-68572.48836344,0.00024,2]
[359266188,1745879440632,-2042.98142123,0.00024348,5]
[359266192,1745879440648,-450.0,0.00025,2]
[359266196,1745879440662,-1881.99999906,0.00025,7]
[359266200,1745879440676,-2498.59647499,0.00025,2]
[359266204,1745879440688,-2042.98142123,0.0002521,5]
[359266208,1745879440705,-1288.0,0.00025703,2]
[359266212,1745879440717,-23900.0,0.00025829,2]
[359266216,1745879440729,-11195.29,0.00025863,2]
[359266220,1745879440743,-2042.98142123,0.00026072,6]
[359266223,1745879440754,-160.59,0.00026328,2]
[359266228,1745879440771,-170.59713712,0.000269,2]
[359266230,1745879440783,-2042.98142123,0.00026934,7]
[359266232,1745879440796,-500.0,0.00027,2]
[359266236,1745879440809,-2498.59647499,0.00027051,2]
[359266239,1745879440822,-160.59,0.00027197,2]
[359266244,1745879440835,-500.0,0.00027279,2]
[359266247,1745879440849,-500.0,0.00027279,2]
[359266249,1745879440861,-500.0,0.00027397,2]
[359266252,1745879440874,-500.0,0.00027397,2]
[359266254,1745879440887,-248.84873238,0.00027397,2]
[359266257,1745879440899,-500.0,0.00027397,2]
[359266259,1745879440913,-1000.0,0.00027397,2]
[359266261,1745879440925,-2042.98142123,0.00027797,7]
[359266264,1745879440939,-160.59,0.00028066,2]
[359266266,1745879440952,-500.0,0.00028099,5]
[359266269,1745879440965,-311.4200911,0.00028099,3]
[359266271,1745879440977,-2042.98142123,0.00028659,8]
[359266273,1745879440990,-160.59,0.00028935,2]
[359266276,1745879441002,-550.0,0.00029,2]
[359266278,1745879441015,-2498.59647499,0.00029101,2]
[359266280,1745879441027,-3157.3723253,0.00029513,2]
[359266283,1745879441040,-2042.98142123,0.00029521,8]
[359266285,1745879441053,-160.59,0.00029804,2]
[359266288,1745879441066,-214.0,0.0003,2]
[359266290,1745879441079,-36473.5525974,0.0003012,2]
[359266293,1745879441092,-28042.31664941,0.0003013,2]
[359266295,1745879441104,-2042.98142123,0.00030383,9]
[359266297,1745879441117,-170.5971371,0.00030492,2]
[359266300,1745879441131,-160.59,0.00030673,2]
[359266302,1745879441143,-600.0,0.00031,2]
[359266305,1745879441156,-2498.59647499,0.00031151,2]
[359266307,1745879441169,-2042.98142123,0.00031245,9]
[359266309,1745879441181,-500.0,0.00031508,2]
[359266312,1745879441194,-45058.98409714,0.00031608,2]
[359266314,1745879441207,-36473.5525974,0.00031638,2]
[359266316,1745879441221,-579.0,0.00031648,2]
[359266319,1745879441234,-911.0,0.00031648,2]
[359266322,1745879441253,-548.0,0.00031648,2]
[359266324,1745879441267,-1446.0,0.00031648,2]
[359266327,1745879441280,-2063.0,0.00031648,2]
[359266329,1745879441293,-920.0,0.00031648,2]
[359266331,1745879441306,-1336.0,0.00031648,2]
[359266334,1745879441319,-3996.0,0.00031648,2]
[359266336,1745879441333,-6193.0,0.00031648,2]
[359266339,1745879441347,-153.0,0.00031648,2]
[359266341,1745879441359,-872.0,0.00031648,2]
[359266343,1745879441372,-890.124,0.00031648,2]
[359266344,1745879441385,-151.0,0.00031814,2]
[359266345,1745879441398,-207.4,0.00031814,2]
[359266346,1745879441417,-501.78,0.00032089,2]
[359266348,1745879441429,-2042.98142123,0.00032107,10]
[359266351,1745879441442,-250.0,0.00032203,2]
[359266353,1745879441455,-177.554938,0.000329,7]
[359266356,1745879441468,-2042.98142123,0.00032969,11]
[359266358,1745879441480,-650.0,0.00033,2]
[359266361,1745879441494,-1000.0,0.00033165,2]
[359266363,1745879441506,-215.0738,0.00033183,2]
[359266365,1745879441519,-500.0,0.000332,5]
[359266368,1745879441533,-218.67076286,0.000332,5]
[359266370,1745879441546,-2498.59647499,0.00033201,2]
[359266373,1745879441558,-199330.0,0.000333,2]
[359266375,1745879441571,-250.0,0.00033441,2]
[359266377,1745879441584,-926.93,0.00033462,2]
[359266380,1745879441597,-2042.98142123,0.00033831,11]
[359266382,1745879441610,-5567.0,0.000339,3]
[359266384,1745879441623,-157.31,0.00034,2]
[359266387,1745879441637,-170.5971371,0.00034085,2]
[359266389,1745879441650,-500.0,0.00034129,5]
[359266392,1745879441664,-558.66003385,0.00034129,5]
[359266394,1745879441676,-500.0,0.00034129,5]
[359266396,1745879441689,-514.7327358,0.00034129,5]
[359266397,1745879441702,-501.4624149,0.00034129,5]
[359266398,1745879441714,-500.0,0.00034129,5]
[359266399,1745879441727,-4422.21531079,0.00034148,2]
[359266400,1745879441740,-501.78,0.00034353,2]
[359266401,1745879441753,-5567.0,0.000345,5]
[359266402,1745879441767,-250.0,0.00034523,2]
[359266403,1745879441779,-223.0315306,0.00034552,2]
[359266404,1745879441793,-1817.0,0.00034648,2]
[359266405,1745879441808,-153.0,0.00034648,2]
[359266406,1745879441821,-2042.98142123,0.00034693,12]
[359266407,1745879441835,-4206.42865503,0.00034892,2]
[359266408,1745879441847,-566.77,0.00034929,2]
[359266410,1745879441857,-226918.09771428,0.00035,2]
[359266412,1745879441866,-700.0,0.00035,2]
[359266414,1745879441876,-1197.05925321,0.00035,2]
[359266416,1745879441886,-888.0,0.00035,5]
[359266418,1745879441896,-206469.58467601,0.00035,2]
[359266420,1745879441905,-10306.60785069,0.00035,2]
[359266422,1745879441915,-227.90540975,0.00035,2]
[359266424,1745879441926,-151.0,0.00035,7]
[359266427,1745879441936,-1000.0,0.00035047,2]
[359266429,1745879441945,-2498.59647499,0.00035252,2]
[359266430,1745879441955,-1502.04268686,0.00035366,2]
[359266433,1745879441964,-2042.98142123,0.00035555,12]
[359266434,1745879441973,-470.0,0.00035616,2]
[359266471,1745879442287,-470.0,0.00035616,3]
[359266475,1745879442319,-470.0,0.00035616,2]
[359266479,1745879442343,-470.0,0.00035616,2]
[359266482,1745879442362,-470.0,0.00035616,2]
[359266484,1745879442371,-470.0,0.00035616,6]
[359266486,1745879442381,-470.0,0.00035616,6]
[359266488,1745879442390,-470.0,0.00035616,2]
[359266490,1745879442399,-470.0,0.00035616,2]
[359266492,1745879442408,-518.74,0.00035616,6]
[359266494,1745879442417,-470.0,0.00035616,2]
[359266496,1745879442427,-470.0,0.00035616,6]
[359266498,1745879442436,-470.0,0.00035616,6]
[359266500,1745879442445,-470.0,0.00035616,6]
[359266502,1745879442454,-470.0,0.00035616,6]
[359266504,1745879442464,-2000.0,0.0003569,4]
[359266506,1745879442473,-1725.69677921,0.00035717,2]
[359266508,1745879442482,-155.15523696,0.00035862,10]
[359266510,1745879442491,-162.92,0.00035865,2]
[359266512,1745879442500,-216.83,0.00035877,2]
[359266514,1745879442511,-160.0,0.0003589,2]
[359266516,1745879442520,-470.0,0.0003589,3]
[359266518,1745879442529,-470.0,0.0003589,2]
[359266520,1745879442540,-470.0,0.0003589,2]
[359266522,1745879442549,-470.0,0.0003589,6]
[359266524,1745879442559,-470.0,0.0003589,2]
[359266526,1745879442567,-518.74,0.0003589,6]
[359266528,1745879442576,-470.0,0.0003589,2]
[359266530,1745879442589,-470.0,0.0003589,6]
[359266532,1745879442598,-470.0,0.0003589,6]
[359266534,1745879442607,-291.0,0.00035918,2]
[359266536,1745879442616,-470.0,0.0003592,6]
[359266538,1745879442625,-509.14,0.0003592,6]
[359266540,1745879442634,-590.35,0.0003592,6]
[359266542,1745879442643,-470.0,0.0003592,6]
[359266545,1745879442653,-470.0,0.0003592,6]
[359266547,1745879442663,-523.91,0.0003592,6]
[359266549,1745879442672,-486.61,0.0003592,6]
[359266551,1745879442681,-1632.19,0.0003592,6]
[359266553,1745879442691,-470.0,0.0003592,6]
[359266555,1745879442700,-470.0,0.0003592,6]
[359266557,1745879442709,-470.0,0.0003592,6]
[359266559,1745879442718,-470.0,0.0003592,6]
[359266561,1745879442727,-470.0,0.0003592,6]
[359266563,1745879442736,-470.0,0.0003592,6]
[359266565,1745879442745,-470.0,0.0003592,6]
[359266567,1745879442754,-470.0,0.0003592,6]
[359266569,1745879442763,-470.0,0.0003592,6]
[359266571,1745879442772,-470.0,0.0003592,6]
[359266573,1745879442782,-470.0,0.0003592,6]
[359266575,1745879442791,-231.28369723,0.00035921,2]
[359266577,1745879442800,-300.0,0.00035938,2]
[359266579,1745879442810,-250.0,0.00035962,7]
[359266580,1745879442819,-154.29,0.00035982,2]
[359266583,1745879442828,-157.31,0.0003599,2]
[359266585,1745879442837,-301.99357669,0.0003599,2]
[359266587,1745879442846,-1500.0,0.00035999,2]
[359266588,1745879442855,-1616.0229,0.00035999,2]
[359266590,1745879442864,-646.41101251,0.00036,2]
[359266592,1745879442874,-160347.19782174,0.00036,2]
[359266594,1745879442883,-151.0,0.00036,7]
[359266596,1745879442892,-478.47531736,0.00036164,2]
[359266598,1745879442901,-470.0,0.00036164,2]
[359266600,1745879442910,-470.0,0.00036164,6]
[359266602,1745879442919,-470.0,0.00036164,2]
[359266604,1745879442928,-518.74,0.00036164,6]
[359266606,1745879442937,-470.0,0.00036164,2]
[359266608,1745879442946,-470.0,0.00036164,6]
[359266610,1745879442955,-470.0,0.00036193,6]
[359266612,1745879442964,-590.35,0.00036193,6]
[359266614,1745879442973,-470.0,0.00036193,6]
[359266618,1745879442982,-470.0,0.00036193,6]
[359266620,1745879442991,-523.91,0.00036193,6]
[359266622,1745879443000,-486.61,0.00036193,6]
[359266624,1745879443009,-1632.19,0.00036193,6]
[359266626,1745879443017,-470.0,0.00036193,6]
[359266628,1745879443026,-470.0,0.00036193,6]
[359266630,1745879443035,-470.0,0.00036193,6]
[359266632,1745879443045,-470.0,0.00036193,6]
[359266634,1745879443054,-470.0,0.00036193,6]
[359266636,1745879443062,-470.0,0.00036193,6]
[359266638,1745879443071,-470.0,0.00036193,6]
[359266640,1745879443079,-470.0,0.00036193,6]
[359266642,1745879443088,-470.0,0.00036193,6]
[359266644,1745879443097,-470.0,0.00036193,6]
[359266646,1745879443106,-470.0,0.00036193,6]
[359266647,1745879443115,-152.99,0.00036298,2]
[359266648,1745879443125,-2042.98142123,0.00036417,13]
[359266649,1745879443134,-470.0,0.00036438,2]
[359266650,1745879443143,-470.0,0.00036438,6]
[359266651,1745879443154,-470.0,0.00036438,2]
[359266652,1745879443163,-518.74,0.00036438,6]
[359266653,1745879443173,-470.0,0.00036438,2]
[359266654,1745879443182,-470.0,0.00036438,6]
[359266655,1745879443192,-470.0,0.00036467,6]
[359266656,1745879443201,-590.35,0.00036467,6]
[359266657,1745879443210,-470.0,0.00036467,6]
[359266659,1745879443220,-470.0,0.00036467,6]
[359266660,1745879443230,-523.91,0.00036467,6]
[359266661,1745879443239,-486.61,0.00036467,6]
[359266662,1745879443249,-1632.19,0.00036467,6]
[359266663,1745879443258,-470.0,0.00036467,6]
[359266664,1745879443268,-470.0,0.00036467,6]
[359266665,1745879443279,-470.0,0.00036467,6]
[359266666,1745879443290,-470.0,0.00036467,6]
[359266667,1745879443301,-448.68937368,0.00036467,6]
[359266668,1745879443311,-470.0,0.00036467,6]
[359266669,1745879443320,-470.0,0.00036467,6]
[359266670,1745879443330,-470.0,0.00036467,6]
[359266671,1745879443339,-470.0,0.00036467,6]
[359266672,1745879443349,-470.0,0.00036467,6]
[359266673,1745879443359,-470.0,0.00036467,6]
[359266674,1745879443369,-501.78,0.00036617,2]
[359266675,1745879443379,-203.77,0.00036691,2]
[359266676,1745879443389,-470.0,0.00036712,2]
[359266677,1745879443399,-470.0,0.00036712,6]
[359266678,1745879443408,-232.60138912,0.00036712,2]
[359266679,1745879443418,-518.74,0.00036712,6]
[359266680,1745879443428,-235.68830819,0.00036712,2]
[359266681,1745879443438,-470.0,0.00036712,6]
[359266682,1745879443448,-470.0,0.00036741,6]
[359266683,1745879443458,-590.35,0.00036741,6]
[359266684,1745879443468,-470.0,0.00036741,6]
[359266685,1745879443478,-470.0,0.00036741,6]
[359266686,1745879443488,-523.91,0.00036741,6]
[359266688,1745879443497,-486.61,0.00036741,6]
[359266690,1745879443507,-1632.19,0.00036741,6]
[359266691,1745879443516,-470.0,0.00036741,6]
[359266692,1745879443525,-470.0,0.00036741,6]
[359266693,1745879443534,-470.0,0.00036741,6]
[359266694,1745879443543,-470.0,0.00036741,6]
[359266695,1745879443551,-335.43673306,0.00036741,6]
[359266696,1745879443560,-470.0,0.00036741,6]
[359266697,1745879443569,-470.0,0.00036741,6]
[359266698,1745879443578,-470.0,0.00036741,6]
[359266699,1745879443591,-470.0,0.00036741,6]
[359266700,1745879443600,-470.0,0.00036741,6]
[359266701,1745879443609,-450.3017145,0.00036958,4]
[359266702,1745879443618,-470.0,0.00036986,2]
[359266703,1745879443628,-470.0,0.00036986,6]
[359266704,1745879443637,-518.74,0.00036986,6]
[359266705,1745879443646,-470.0,0.00036986,6]
[359266706,1745879443655,-969.91,0.00037,2]
[359266707,1745879443665,-470.0,0.00037015,6]
[359266708,1745879443674,-590.35,0.00037015,6]
[359266709,1745879443684,-470.0,0.00037015,6]
[359266711,1745879443693,-470.0,0.00037015,6]
[359266713,1745879443702,-523.91,0.00037015,6]
[359266715,1745879443711,-486.61,0.00037015,6]
[359266717,1745879443720,-1632.19,0.00037015,6]
[359266719,1745879443730,-361.27093186,0.00037015,6]
[359266721,1745879443739,-470.0,0.00037015,6]
[359266723,1745879443748,-470.0,0.00037015,6]
[359266725,1745879443757,-470.0,0.00037015,6]
[359266726,1745879443767,-470.0,0.00037015,6]
[359266729,1745879443776,-470.0,0.00037015,6]
[359266730,1745879443786,-470.0,0.00037015,6]
[359266732,1745879443795,-470.0,0.00037015,6]
[359266734,1745879443804,-470.0,0.00037015,6]
[359266736,1745879443814,-155.15523695,0.00037039,11]
[359266738,1745879443824,-2000.0,0.00037121,4]
[359266740,1745879443833,-1256.87,0.00037164,5]
[359266743,1745879443843,-200.0,0.00037218,2]
[359266745,1745879443857,-250.0,0.00037218,2]
[359266747,1745879443866,-1497.89,0.00037218,2]
[359266749,1745879443875,-470.0,0.0003726,2]
[359266751,1745879443885,-470.0,0.0003726,6]
[359266752,1745879443894,-518.74,0.0003726,6]
[359266754,1745879443904,-470.0,0.0003726,6]
[359266756,1745879443914,-2042.98142123,0.00037279,13]
[359266758,1745879443923,-470.0,0.00037289,6]
[359266760,1745879443933,-590.35,0.00037289,6]
[359266762,1745879443942,-470.0,0.00037289,6]
[359266764,1745879443952,-470.0,0.00037289,6]